Cogmind - Beta 17.1 @@@ ROGUE MODE // 2026.09.14 @ 08:50:43 Player: TheSkyeDoctor Result: Destroyed by H-55 Commando with Gauss Rifle Performance ------------- Evolutions (0) 0 Regions Visited (3) 600 Robots Destroyed (10) 50 Value Destroyed (120) 120 Prototype IDs (0) 0 Alien Tech Used (0) 0 Bonus (335) 335 TOTAL SCORE: 1105 Bonus ------- Follower Combat Kills 35 Aligned with FarCom 300 Cogmind --------- Core Integrity 0/250 Matter 264/300 Energy 99/100 System Corruption 0% Temperature Cool (0) Movement Core (50) Location -10/Exiles Parts ------- > --- POWER (1) -------- (None) > --- PROPULSION (2) --- (None) > --- UTILITY (2) ------ Seismic Detector > --- WEAPON (2) ------- (None) > --- INVENTORY (5) ---- Flying Fortress v7 Large Matter Pod (100) Peak State ------------ > --- POWER ------------ Ion Engine > --- PROPULSION ------- Aluminum Leg Aluminum Leg > --- UTILITY ---------- Small Storage Unit Seismic Detector > --- WEAPON ----------- Makeshift Shrapnel Gun Light Cannon > --- INVENTORY -------- Flying Fortress v7 Scrap Suit Large Matter Pod Improved Terrain Scanner [Rating: 14] Favorites ----------- Power Ion Engine Engine Ion Engine Propulsion Aluminum Leg Leg Aluminum Leg Utility Small Storage Unit Device Seismic Detector Storage Small Storage Unit Weapon Medium Laser Energy Gun Medium Laser Ballistic Gun Makeshift Shrapnel Gun Ballistic Cannon Light Cannon Build | -11 -10 -10 -10 ------- Run | Yrd Mat Min Exi Slots Evolved . | . . . . Power . | . . . . Propulsion . | . . . . Utility . | . . . . Weapon . | . . . . Parts Attached 9 | 7 . 1 1 Power 1 | 1 . . . Engine 1 | 1 . . . Core . | . . . . Reactor . | . . . . Propulsion 2 | 2 . . . Treads . | . . . . Leg 2 | 2 . . . Wheel . | . . . . Hover . | . . . . Flight . | . . . . Utility 2 | 2 . . . Device 1 | 1 . . . Storage 1 | 1 . . . Processor . | . . . . Hackware . | . . . . Protection . | . . . . Artifact . | . . . . Weapon 4 | 2 . 1 1 Energy Gun 1 | 1 . . . Energy Cannon . | . . . . Ballistic Gun 2 | 1 . 1 . Ballistic Cannon 1 | . . . 1 Launcher . | . . . . Special Weapon . | . . . . Impact Weapon . | . . . . Slashing Weapon . | . . . . Piercing Weapon . | . . . . Special Melee Weapon . | . . . . Unidentified Prototypes . | . . . . Parts Lost 2 | . . . 2 Power . | . . . . Propulsion 2 | . . . 2 Utility . | . . . . Weapon . | . . . . Highest Loss Streak 2 | . . . 2 To Critical Strikes . | . . . . Average Backups 5 | . 2 6 6 Power . | . 1 1 . Propulsion . | . . . . Utility 3 | . 1 4 4 Weapon . | . . 1 . Tool/Special . | . . . . Unused Backups 7 | . . . 7 Power 1 | . . . 1 Propulsion 1 | . . . 1 Utility 5 | . . . 5 Weapon . | . . . . Tool/Special . | . . . . Average Slot Usage (%) 98 | . 100 100 96 Engine 13 | . 14 14 13 Leg 27 | . 28 28 26 Device 14 | . 14 14 14 Storage 13 | . 14 14 13 Energy Gun 12 | . 14 14 10 Ballistic Gun 13 | . 14 14 13 Peak Build Rating 14 | 7 7 11 14 Average Rating 9 | 5 7 10 11 On Entrance 6 | . 7 7 11 Avg Prop Armor Cover (%) . | . . . . Naked Turns . | . . . . Heaviest Build 16 | 15 15 15 16 Greatest Support 20 | 20 20 20 20 Greatest Overweight (x) 1 | . . . 1 Average Overweight (x) . | . . . . Largest Inventory Capacity 8 | 8 8 8 8 Average Capacity 7 | 7 8 8 7 Most Carried 8 | 2 6 8 8 Average Carried 5 | . 2 7 7 Final Capacity 8 | 8 8 8 5 Final Carried 8 | 2 6 8 5 Class Distribution -------------------- 100% | Mutant Dominant Class ---------------- Mutant | -10/Materials Mutant | -10/Mines Mutant | -10/Exiles Resources | -11 -10 -10 -10 ----------- Run | Yrd Mat Min Exi Matter Collected 481 | 288 61 132 . Remotely . | . . . . Salvage Created 229 | 108 85 36 . Parts 22 | 6 11 5 . Haulers Intercepted . | . . . . Recyclers Shooed 1 | 1 . . . Parts Field Recycled . | . . . . Retrieved Matter . | . . . . Parts Self-Destructed . | . . . . Prevented . | . . . . Parts Restored . | . . . . Kills | -11 -10 -10 -10 ------- Run | Yrd Mat Min Exi Combat Hostiles Destroyed 6 | . 5 1 . Guns 6 | . 5 1 . Classes Destroyed 5 | 2 2 1 . Tunneler 2 | 2 . . . Recycler 1 | 1 . . . Watcher 1 | . 1 . . Swarmer 5 | . 5 . . Grunt 1 | . . 1 . Best Kill Streak 5 | 3 5 1 . Combat Bots Only 4 | . 4 1 . Max Kills in Single Turn 1 | 1 1 1 . Gunslinging . | . . . . Exploded . | . . . . Melee . | . . . . Uniques/NPCs Destroyed . | . . . . Combat | -11 -10 -10 -10 -------- Run | Yrd Mat Min Exi Hostile Shots Fired 67 | . 42 3 22 Missed 26 | . 18 2 6 Hits 41 | . 24 1 16 Projectile 41 | . 24 1 16 AOE 11 | . . . 11 Critical Strikes 1 | . 1 . . Damage Taken 840 | . 215 29 596 Core 258 | . 44 11 203 Absorbed by Shields . | . . . . Core Remaining (%) 100 | 100 . . . Volleys Fired 35 | 6 21 4 4 Largest 2 | 2 2 2 2 Hottest 74 | 70 70 74 54 Shots Fired 62 | 12 34 8 8 Gun 58 | 12 34 8 4 Cannon 4 | . . . 4 Launcher . | . . . . Special . | . . . . Kinetic 39 | 6 21 4 8 Thermal 23 | 6 13 4 . Explosive . | . . . . Electromagnetic . | . . . . Robot Hit Streak 3 | 2 3 2 2 Robot Miss Streak 7 | 2 7 3 5 Penetration Max . | . . . . Secondary Targets 1 | . 1 . . Max Gunslinging Chain 1 | . 1 . . Shots Hit Robots 25 | 4 12 5 4 Core Hits 15 | 4 8 2 1 Critical Kills . | . . . . Critical Parts Destroyed . | . . . . Critical Strikes 2 | . 1 1 . Burn 2 | . 1 1 . Melee Attacks . | . . . . Impact . | . . . . Slashing . | . . . . Piercing . | . . . . Sneak Attacks . | . . . . Combat Hostiles . | . . . . Follow-up Attacks . | . . . . Damage Inflicted 353 | 51 161 89 52 Guns 333 | 51 161 89 32 Cannons 20 | . . . 20 Explosions . | . . . . Melee . | . . . . Ramming . | . . . . Kinetic 238 | 38 109 39 52 Thermal 115 | 13 52 50 . Explosive . | . . . . Electromagnetic . | . . . . Impact . | . . . . Slashing . | . . . . Piercing . | . . . . Highest Corruption . | . . . . Average Corruption . | . . . . Corruption Purged . | . . . . Corruption Blocked . | . . . . Overload Shots . | . . . . Overflow Damage . | . . . . Projectiles . | . . . . Explosions . | . . . . Melee . | . . . . Knockbacks . | . . . . Impact . | . . . . Kinetic . | . . . . Secondary . | . . . . Self-Inflicted Damage . | . . . . Shots . | . . . . Rammed . | . . . . Targets Rammed . | . . . . Kicked . | . . . . Crushed . | . . . . Highest Temperature 63 | 36 36 63 . Average Temperature 18 | 16 13 33 . Received Heat Transfer 63 | . 48 15 . Siege Activations . | . . . . Martial Activations . | . . . . Shielding Activations . | . . . . Robots Disrupted . | . . . . Combat Hostiles . | . . . . Robots Corrupted . | . . . . Combat Hostiles . | . . . . Parts Fried . | . . . . Impact Corruptions . | . . . . Robots Melted . | . . . . Combat Hostiles . | . . . . Parts Melted . | . . . . Heat Transferred 481 | 37 222 222 . Parts Sabotaged . | . . . . Parts Stolen . | . . . . Parts Stripped . | . . . . Power Chain Reactions . | . . . . Alert | -11 -10 -10 -10 ------- Run | Yrd Mat Min Exi Maximum Alert Level . | . . . . Low Security (%) 100 | 100 100 100 . Level 1 . | . . . . Level 2 . | . . . . Level 3 . | . . . . Level 4 . | . . . . Level 5 . | . . . . High Security . | . . . . Max Security . | . . . . Peak Influence 88 | 10 88 50 . Initial 26 | . . 26 . Average 15 | 1 33 6 . Influence Increases 281 | 15 208 58 . Destroy 0b10 Robot/C 140 | . 100 40 . Destroy 0b10 Robot/NC 20 | 15 5 . . Destroy Leader 22 | . 12 10 . Allied During Kill 8 | . . 8 . Destroy Structure 1 | . 1 . . Lose Combat Pursuer 90 | . 90 . . Influence Decreases 281 | 15 140 92 34 Entered New Map 76 | . . 42 34 Time Decay 205 | 15 140 50 . Squads Dispatched 1 | . 1 . . Investigation . | . . . . Extermination . | . . . . Reinforcement 1 | . 1 . . Assault . | . . . . Garrison . | . . . . Intercept . | . . . . Searches Triggered . | . . . . Construction Impeded . | . . . . Haulers Reinforced . | . . . . Active Scanning Responses . | . . . . Cargo Convoy Interrupts . | . . . . Stealth | -11 -10 -10 -10 --------- Run | Yrd Mat Min Exi Distress Signals 4 | . 4 . . Communications Jammed . | . . . . Distress Signals . | . . . . Times Spotted 14 | . 10 2 2 Peak Tracking Total 2 | . 2 2 2 Tactical Retreats 4 | . 4 . . Traps | -11 -10 -10 -10 ------- Run | Yrd Mat Min Exi Traps Triggered . | . . . . Indirectly . | . . . . Trap Hack Attempts . | . . . . Triggered . | . . . . Disarmed . | . . . . Reprogrammed . | . . . . Reused . | . . . . Traps Extracted . | . . . . Installed . | . . . . Triggered . | . . . . Machines | -11 -10 -10 -10 ---------- Run | Yrd Mat Min Exi Machines Disabled 2 | . . . 2 Max in Single Turn 1 | . . . 1 Machines Repaired . | . . . . Machines Dismantled . | . . . . Machines Sabotaged . | . . . . Overloaded Fab Kills . | . . . . Hacking | -11 -10 -10 -10 --------- Run | Yrd Mat Min Exi Machines Accessed . | . . . . Terminals . | . . . . Fabricators . | . . . . Repair Stations . | . . . . Recycling Units . | . . . . Scanalyzers . | . . . . Garrison Access . | . . . . Total Hacks . | . . . . Successful . | . . . . Failed . | . . . . Catastrophic . | . . . . Database Lockouts . | . . . . Manual 1 | . . . 1 Terminals . | . . . . Fabricators . | . . . . Repair Stations . | . . . . Recycling Units . | . . . . Scanalyzers . | . . . . Garrison Access . | . . . . Terminal Hacks . | . . . . Fabricator Hacks . | . . . . Repair Station Hacks . | . . . . Recycling Unit Hacks . | . . . . Scanalyzer . | . . . . Garrison Access Hacks . | . . . . Unauthorized Hacks . | . . . . Terminals . | . . . . Fabricators . | . . . . Repair Stations . | . . . . Recycling Units . | . . . . Scanalyzers . | . . . . Garrison Access . | . . . . Data Cores Recovered . | . . . . Used . | . . . . Hacking Detections . | . . . . Full Trace Events . | . . . . Feedback Events . | . . . . Feedback Blocked . | . . . . Robot Schematics Acquired . | . . . . Robots Built . | . . . . Authchips . | . . . . Time . | . . . . Total Robot Build Rating . | . . . . Part Schematics Acquired . | . . . . Parts Built . | . . . . Authchips . | . . . . Time . | . . . . Total Part Build Rating . | . . . . Part Studies Acquired . | . . . . Parts Repaired . | . . . . Time . | . . . . Parts Recycled . | . . . . Recycled Matter . | . . . . Retrieved Matter . | . . . . Retrieved Components . | . . . . Parts Scanalyzed . | . . . . Part Schematics Acquired . | . . . . Parts Damaged . | . . . . Bothacking | -11 -10 -10 -10 ------------ Run | Yrd Mat Min Exi Used RIF Installer . | . . . . Robots Hacked . | . . . . Non-combat . | . . . . Combat . | . . . . Robot Hacks Applied . | . . . . Relay Couplers Released . | . . . . Fabnet Peak Effective % . | . . . . Robots Rewired . | . . . . Allies Hacked . | . . . . Hacks Repelled . | . . . . Allies | -11 -10 -10 -10 -------- Run | Yrd Mat Min Exi Total Allies 3 | . . 3 . Largest Group 3 | . . 3 3 Highest-Rated Group 40 | . . 40 40 Highest-Rated Ally 16 | . . 16 16 Total Orders . | . . . . Ally Attacks 9 | . . 5 4 Total Damage 132 | . . 81 51 Kills 1 | . . 1 . Allies Corrupted . | . . . . Allies Melted . | . . . . Intel | -11 -10 -10 -10 ------- Run | Yrd Mat Min Exi Active Infowar (turns) 1101 | 19 315 443 324 Seismic 1101 | 19 315 443 324 Robot Analysis Total . | . . . . Derelict Logs Recovered 1 | . . 1 . Drone Launches . | . . . . Drone Recoveries . | . . . . Exploration | -11 -10 -10 -10 ------------- Run | Yrd Mat Min Exi Turns Passed 1180 | 98 315 443 324 Spaces Moved 869 | 60 197 355 257 Core 16 | 6 . . 10 Treads . | . . . . Legs 853 | 54 197 355 247 Wheels . | . . . . Hover . | . . . . Flight . | . . . . Fastest Speed 50 | 50 120 120 50 Average Speed 119 | 113 120 120 118 Slowest Speed 190 | 120 120 120 190 Overloaded Moves . | . . . . Propulsion Burnouts . | . . . . Robots Hopped . | . . . . Potential Cave-ins . | . . . . Cave-ins Triggered . | . . . . Exploration Rate (%) 40 | 4 36 73 47 Regions Visited 3 Branch Regions 2 Pre-discovered Areas 1 | . . 1 . Known Exits Taken . | . . . . Unknown Exits Taken 3 | 1 1 1 . Scrap Searched 1 | . . 1 . Spaces Dug . | . . . . Terrain Destroyed . | . . . . Melee . | . . . . Projectile . | . . . . AOE . | . . . . Terrain Rammed . | . . . . Walls Destroyed . | . . . . Machines Disabled . | . . . . Actions | -11 -10 -10 -10 --------- Run | Yrd Mat Min Exi Total 953 | 74 241 364 274 Wait 23 | . 20 3 . Move 866 | 59 196 354 257 Hop . | . . . . Pick Up 8 | 2 4 1 1 Fast Attach 8 | 7 . 1 . Attach 1 | . . . 1 Detach 1 | . . . 1 Swap . | . . . . Drop 11 | . . 1 10 Fire 35 | 6 21 4 4 Melee . | . . . . Ram . | . . . . Kick . | . . . . Crush . | . . . . Escape Stasis . | . . . . Rewire . | . . . . Trap . | . . . . Miscellaneous . | . . . . Route ------- -11/Scrapyard -10/Materials -10/Mines (discovered 4 exits: [*Mat x2] / *Exi / [*Sub]) -10/Exiles History --------- Turn | Location | Event 4 | -11/Scrapyard | Discovered new exit (range 15) 99 | -11/Scrapyard | Entered Materials 310 | -10/Materials | Build established: Mutant 402 | -10/Materials | Discovered new exit (range 11) 414 | -10/Materials | Entered Mines 471 | -10/Mines | Found a Scrap Suit stashed away for nefarious purposes 473 | -10/Mines | Found Scrap Suit 513 | -10/Mines | A weapon hastily lodged in a ceiling crevice suddenly fell to the ground 530 | -10/Mines | Discovered new exit (range 6) 630 | -10/Mines | Assisted by bots powering up and referring to "LRC-V3" 675 | -10/Mines | Discovered new exit (range 12) 805 | -10/Mines | Discovered new exit (range 7) 847 | -10/Mines | Deemed a non-threat by the Exiles lab entrance 848 | -10/Mines | Discovered new exit (range 5) 857 | -10/Mines | Entered Exiles 857 | -10/Exiles | Accompanied by 3 allies 886 | -10/Exiles | Met 8R-AWN 909 | -10/Exiles | Met EX-HEX 945 | -10/Exiles | Met EX-BIN 962 | -10/Exiles | Aligned with FarCom system 963 | -10/Exiles | Given EX-Vault access code 992 | -10/Exiles | Opened EX-Vault 1029 | -10/Exiles | Warned to stay clear of 0b10 Research branches 1041 | -10/Exiles | Exiles lab attacked by MAIN.C 1112 | -10/Exiles | Found Prototype Flight Unit 1172 | -10/Exiles | Core integrity fell below 50% 1179 | -10/Exiles | Core integrity fell below 20% 1181 | -10/Exiles | Destroyed by H-55 Commando with Gauss Rifle Last Messages --------------- 01112_ Acquired Prototype Flight Unit. 01153_ Machine disabled. 01155_ Mercenary 1a destroyed. 01155_ Machine disabled. 01157_ BIN's Workstation disabled. 01159_ Trooper 1a destroyed. 01159_ Trooper 1b destroyed. 01166_ Penetrated by Slug. 01166_ Aluminum Leg destroyed. 01169_ Slug penetrates Earth. 01171_ Aluminum Leg destroyed. 01172_ Dropped Mak. Shrapnel Gun. 01173_ Dropped Lgt. Cannon. 01174_ Dropped Ion Engine. 01175_ Penetrated by Slug. 01175_ Dropped Scrap Suit. 01176_ Dropped Imp. Terrain Scanner. 01176_ Dropped Sml. Storage Unit. 01177_ The unstable cave ceiling collapses. 01178_ Penetrated by Slug. Map ----- +----------------------------------------------------+ | ???????????????????????????#" #???????? | | ???????????????????????????#" ## #???????? | | ???????????????????????????#""""""?# #?####### | | ???????????????????????????##"###??# #?#"""""" | | ???????????????????????????? ??????# #?#"""""" | | ???????????????????????????????????# #?#"""""" | | ??????????????????????????????????## ###"" """ | | ??????????????????????????????????#" """ | | ??????????????????????????????????#" "" | | ??????????????????????????????????#" "" | | ??????????????????????????????????#" "" | | ??????????????????????????????????#" * "" | | ?????????????????????????????????##" %[ "" | | ????????????????????????????????? # "" | | ?????????????????????"????????#### "" | | ????????????????????""????????# "X" "" | | ????????????????????"" ???????## """ | | ???????????????????? ???????# """"""" | | ?????????????????????" ???????## ####### | | ?????????????????????# ???#### # #?????? | | ???????????????????#?# #### # ###?????? | | ??????????? """#####X# #"## ##??????? | | ??????????? " ##???### | | ?????????? "" !![d #####"" | | ?????????? " ] " | | ?????????? @ | | ??????????# | | ???????????# | | ???????????## | | ????????????##" | | ?????????????#""" """" | | ??????????????? ######""" | | ??????????????" ""##????##### "" | | ??????????????"" """##?????????##""" | | ??????????????" t """##???????????#"""" | | ??????????????" ""#????????????#"" | | ?????????????? ???????????????""" | | ???????????????? ??????????????? | | ?????????????????? ??????????????? | | ????????????????????? ???????????????? | | ??????????????????????? ???????????????? | | ??????????????????????????????????????????? | | ???????????????????????????????????????????? | | ?????????????????????????????????????????????" " | | ???????????????????????????????????????????????" " | | ?????????????????????????????????????????????????? | | ?????????????????????????????????????????????????? | | ?????????????????????????????????????????????????? | | ?????????????????????????????????????????????????? | | ?????????????????????????????????????????????????? | +----------------------------------------------------+ Best States ------------- Heat Dissipation 25 Energy Generation 10 Energy Capacity 250 Matter Stores 300 Matter Capacity 300 Sight Range 16 Terrain Scan Density 10 Evasion (%) 55 Item Schematics ----------------- None Robot Schematics ------------------ None Fabricated ------------ Nothing Repaired ---------- Nothing Studied --------- None Alien Tech Used ----------------- None Achievements -------------- None Challenges ------------ None Game ------ Seed CobblerWeightStripper Manual? 0 Play Time 00:06:28 Cumulative 210.6 hours Start 2026.09.14 @ 08:45:50 End 2026.09.14 @ 08:50:43 Sessions 1 Manual Loads 0 Difficulty Rogue Special Mode None Game No. 409 Rogue 409 Adventurer 0 Explorer 0 Win Type - Total 2 Types 2/0/0/0/0/0/0/0/0/0 Lore% 62 Gallery% 62 Achievement% 48 Wizard Run 0 Options --------- Layout 2 ASCII 0 Keyboard 1 Movement Arrows Keybinds 0 Fullscreen 1 Font 24/Smallcaps Map View 50x44 Zoom Use 0% Tactical HUD 1 Map Filters NONE Filters NONE Steam 1 RUN: 5843f35b-8caa-4a62-9078-c36dd55fa05d